bitfinex/quotes_ETHUSD_20220113
["timestamp","ask_amount","ask_price","bid_price","bid_amount"]
[1642066265293,1.53094897,3370.9,3370.7,3.05080544]
[1642066265494,0.1186,3370.8,3370.7,3.05080544]
[1642066265697,0.1186,3371.3,3370.7,3.79233544]
[1642066265898,0.12201054,3371.3,3370.8,2.55080544]
[1642066266097,0.00284211,3371.2,3370.8,5.48897143]
[1642066266294,0.00284211,3371.2,3371.1,0.5]
[1642066266594,1.39263749,3371.2,3371.1,0.5]
[1642066266795,1.29967819,3371.2,3371.1,0.5]
[1642066268149,1.29967819,3371.2,3371.1,0.97576544]
[1642066269549,1.41827819,3371.2,3371.1,0.97576544]
[1642066270351,1.41987819,3371.2,3371.1,0.97576544]
[1642066270754,1.30127819,3371.2,3371.1,0.97576544]
[1642066272495,1.30127819,3371.2,3371.1,1.09436544]
[1642066273296,1.30127819,3371.2,3371.1,3.64484901]
[1642066273994,1.30127819,3371.2,3371.1,1.09436544]
[1642066274842,0.0016,3371.2,3371.1,1.09436544]
[1642066275143,0.1186,3371.9,3371.1,1.09436544]
[1642066275144,0.1186,3372.6,3371.8,0.74139]
[1642066275345,3.6171249,3372.8,3371.8,1.44491944]
[1642066275547,3.6171249,3372.8,3372.1,0.5]
[1642066275750,0.05,3372.9,3372.4,0.23788272]
[1642066275946,1.3915339,3372.9,3372.4,0.23788272]
[1642066276147,1.3915339,3372.9,3372.8,0.5]
[1642066276148,0.1686,3372.9,3372.8,0.5]
[1642066276350,0.05,3372.9,3372.8,0.5]
[1642066276546,0.06250531,3372.9,3372.8,0.5]
[1642066276947,0.06250531,3372.9,3372.8,0.6184]
[1642066277145,0.06250531,3372.9,3372.8,0.76892271]
[1642066277345,0.06250531,3372.9,3372.8,0.1185]
[1642066277547,0.06250531,3372.9,3372.8,0.5445]
[1642066277944,0.06250531,3372.9,3372.8,0.04450741]
[1642066278345,0.1184,3373.7,3372.8,2.81854669]
[1642066278611,0.0018249,3374.1,3372.8,2.81854669]
[1642066278612,0.0018249,3374.1,3373.6,0.74085]
[1642066278794,0.1184,3374.0,3372.4,0.14411311]
[1642066278994,0.1184,3374.0,3372.6,2.47403928]
[1642066278995,0.12465266,3374.0,3372.6,2.47403928]
[1642066279191,0.12465266,3374.0,3372.4,0.14411311]
[1642066279192,0.99979245,3373.1,3372.9,2.47403928]
[1642066279393,0.99979245,3373.1,3372.7,0.74097]
[1642066279693,1.0009293,3373.1,3372.9,0.74101]
[1642066279891,0.00113685,3373.1,3372.9,2.0746454]
[1642066280092,0.00113685,3373.1,3373.0,5.94486]
[1642066280293,0.00113685,3373.1,3373.0,6.37086]
[1642066280492,1.11819245,3374.0,3373.0,6.37086]
[1642066280691,0.0018249,3374.1,3373.4,1.48175]
[1642066280893,0.00454739,3373.9,3373.6,0.7409]
[1642066281095,0.00454739,3373.9,3373.7,0.74088]
[1642066281294,1.10496325,3373.8,3373.7,0.74088]
[1642066281596,1.10496325,3373.8,3373.7,0.5]
[1642066282444,0.49979245,3373.7,3373.0,2.47740277]
[1642066282744,0.00284212,3373.6,3373.0,3.47740277]
[1642066282943,0.00284212,3373.6,3373.0,1.1184]
[1642066283145,0.00227369,3373.5,3373.2,0.74097]
[1642066283347,0.00227369,3373.5,3373.4,0.5]
[1642066283543,1.10098429,3373.8,3373.5,0.00891523]
[1642066283944,0.12181054,3373.7,3373.4,0.5]
[1642066284148,0.99981468,3373.5,3373.4,0.5]
[1642066284345,0.99981468,3373.5,3373.4,0.74098]
[1642066284544,0.00227369,3373.5,3373.4,0.5]
[1642066284945,1.00208837,3373.5,3373.4,0.5]
[1642066285145,1.00208837,3373.5,3373.4,3.30099702]
[1642066285345,0.95208837,3373.5,3373.4,0.926]
[1642066285544,1.10098429,3373.8,3373.5,0.7409]
[1642066285745,1.10098429,3373.8,3373.5,1.48178]
[1642066285945,0.00113685,3373.7,3373.6,0.7409]
[1642066286399,0.00113685,3373.7,3373.6,1.2409]
[1642066286598,0.00113685,3373.7,3373.6,1.3593]
[1642066286799,0.00113685,3373.7,3373.6,1.2409]
[1642066286999,0.00113685,3373.7,3373.6,5.17229129]
[1642066287797,0.00113685,3373.7,3373.6,4.29069129]
[1642066288597,0.0018249,3374.1,3373.6,5.29069129]
[1642066288799,0.0018249,3374.1,3373.9,0.74077]
[1642066288999,0.0018249,3374.1,3374.0,3.54027701]
[1642066289200,0.0018249,3374.1,3374.0,1.51677]
[1642066289402,0.0040986,3374.1,3374.0,1.46677]
[1642066290048,0.0040986,3374.1,3374.0,4.87001081]
[1642066290245,0.0040986,3374.1,3374.0,4.98841081]
[1642066290447,0.0040986,3374.1,3374.0,1.58517]
[1642066290945,0.0040986,3374.1,3374.0,0.926]
[1642066291143,1.26368235,3374.1,3374.0,0.926]
[1642066291346,1.26368235,3374.1,3374.0,1.07011311]
[1642066291347,0.0040986,3374.1,3374.0,1.07011311]
[1642066291547,0.0040986,3374.1,3374.0,3.46909055]
[1642066291844,0.0040789,3374.1,3374.0,1.07011311]
[1642066292444,1.32124156,3374.1,3374.0,1.07011311]
[1642066293045,0.0040789,3374.1,3374.0,1.07011311]
[1642066293895,0.0742841,3374.8,3374.3,0.74073]
[1642066294095,1.99982319,3375.0,3374.4,0.74073]
[1642066294096,1.17531867,3374.7,3374.4,0.74073]
[1642066294294,1.17531867,3374.7,3374.2,0.0441]
[1642066294494,1.17531867,3374.7,3374.0,1.11422311]
[1642066294695,1.11822319,3374.6,3374.0,1.07011311]
[1642066294991,0.00227369,3374.5,3374.1,0.74082]
[1642066295193,0.00227369,3374.5,3374.2,2.30209539]
[1642066295392,0.00170527,3374.4,3374.2,0.04411]
[1642066295597,0.00170527,3374.4,3374.3,0.5]
[1642066295792,0.99982319,3374.6,3374.3,0.5]
[1642066296192,0.00227369,3374.5,3374.3,0.5]
[1642066296592,0.00170527,3374.4,3374.2,2.48155]
[1642066296792,0.00170527,3374.4,3374.3,0.5]
[1642066296993,1.17531867,3374.7,3374.3,0.5]
[1642066297194,1.17531867,3374.7,3374.2,2.48155]
[1642066297444,0.00284211,3374.6,3374.2,2.48155]
[1642066297643,0.00284211,3374.6,3374.5,0.5]
[1642066297848,1.99982319,3375.0,3374.5,3.51077366]
[1642066298045,1.99982319,3375.0,3374.6,0.74055]
[1642066298245,0.00454738,3374.9,3374.7,0.426]
[1642066298644,0.00397896,3374.8,3374.7,0.426]
[1642066298844,0.00397896,3374.8,3374.7,3.64773]
[1642066299045,0.00397896,3374.8,3374.7,2.90715]
[1642066299243,0.00397896,3374.8,3374.7,0.426]
[1642066299443,0.00397896,3374.8,3374.5,2.09949]
[1642066299644,0.00397896,3374.8,3374.5,0.5]
[1642066299843,2.41637328,3374.9,3374.5,0.5]
[1642066299844,0.00341054,3374.7,3374.5,0.5]
[1642066300247,0.00284211,3374.6,3374.4,0.0108348]
[1642066300644,0.00227369,3374.5,3374.4,0.4368348]
[1642066301096,0.00227369,3374.5,3374.4,1.6775748]
[1642066301391,0.00227369,3374.5,3374.4,0.9368348]
[1642066301591,0.00227369,3374.5,3374.4,1.08094791]
[1642066301992,0.00227369,3374.5,3374.4,0.65494791]
[1642066302893,0.00227369,3374.5,3374.4,0.77334791]
[1642066306043,0.00227369,3374.5,3374.4,0.65494791]
[1642066308446,0.00227369,3374.5,3374.4,1.08094791]
[1642066308917,0.00227369,3374.5,3374.4,1.19934791]
[1642066309510,1.31302667,3374.9,3374.4,1.08094791]
[1642066309708,1.31302667,3374.9,3374.8,0.5]
[1642066310109,1.31302667,3374.9,3374.8,0.64411311]
[1642066310713,2.51558372,3375.0,3374.8,0.64411311]
[1642066310914,2.39718372,3375.0,3374.9,0.5]
[1642066311316,2.40002584,3375.0,3374.9,0.5]
[1642066312350,1.00284212,3375.0,3374.9,0.5]
[1642066312552,1.00284212,3375.0,3374.9,1.0444]
[1642066312947,1.00284212,3375.0,3374.9,2.0444]
[1642066313447,2.15390015,3375.0,3374.9,2.7849]
[1642066314049,2.15390015,3375.0,3374.9,3.6786]
[1642066314449,2.15550015,3375.0,3374.9,3.6786]
[1642066314648,2.15550015,3375.0,3374.9,2.9381]
[1642066314853,2.15550015,3375.0,3374.9,2.5121]
[1642066315449,2.15550015,3375.0,3374.9,2.65621311]
[1642066316995,1.00444212,3375.0,3374.9,3.25621311]
[1642066317198,1.00444212,3375.0,3374.9,3.82270311]
[1642066319096,1.00444212,3375.0,3374.9,4.42270311]
[1642066319298,1.00444212,3375.0,3374.9,4.12270311]
[1642066319700,1.00444212,3375.0,3374.9,3.82270311]
[1642066320147,1.00444212,3375.0,3374.9,4.12270311]
[1642066320342,1.00444212,3375.0,3374.9,6.36931614]
[1642066320553,1.00444212,3375.0,3374.9,6.66931614]
[1642066320844,1.00444212,3375.0,3374.9,6.36931614]
[1642066321045,1.00444212,3375.0,3374.9,6.96931614]
[1642066321256,1.00444212,3375.0,3374.9,6.36931614]
[1642066321843,1.00444212,3375.0,3374.9,6.66931614]
[1642066322443,1.00444212,3375.0,3374.9,6.55091614]
[1642066324302,1.00444212,3375.0,3374.9,6.85091614]
[1642066324501,1.00444212,3375.0,3374.9,6.96931614]
[1642066324702,1.00444212,3375.0,3374.9,6.36931614]
[1642066325101,1.00444212,3375.0,3374.9,6.66931614]
[1642066325703,1.00444212,3375.0,3374.9,6.55091614]
[1642066326506,1.00444212,3375.0,3374.9,8.8622788]
[1642066327108,1.00444212,3375.0,3374.9,6.55091614]
[1642066327371,1.00444212,3375.0,3374.9,8.96728942]
[1642066327558,1.00444212,3375.0,3374.9,6.55091614]
[1642066328361,0.03338793,3375.2,3375.1,0.8937]
[1642066328561,0.03338793,3375.2,3375.1,1.2197]
[1642066328762,0.03452477,3375.2,3375.1,1.7197]
[1642066328962,0.03452477,3375.2,3375.1,2.86381311]
[1642066329363,0.03452477,3375.2,3375.1,3.50107913]
[1642066330361,0.03452477,3375.2,3375.1,4.74769216]
[1642066330560,0.01041228,3375.3,3375.1,6.04769216]
[1642066330762,0.01041228,3375.3,3375.2,1.56474179]
[1642066330960,0.01041228,3375.3,3375.2,3.10914179]
[1642066331196,1e-08,3375.3,3375.2,3.57846]
[1642066331398,1e-08,3375.3,3375.2,6.04980295]
[1642066331794,1e-08,3375.3,3375.2,6.08340401]
[1642066331994,1e-08,3375.3,3375.2,5.96500401]
[1642066332596,1e-08,3375.3,3375.2,8.51161704]
[1642066333398,2.00619329,3376.0,3375.6,0.7937]
[1642066333601,2.00619329,3376.0,3375.8,1.53411]
[1642066333798,0.00397897,3375.9,3375.8,1.53411]
[1642066334204,0.00397897,3375.9,3375.8,0.93781311]
[1642066334852,0.00397897,3375.9,3375.8,2.17821311]
[1642066335250,0.00397897,3375.9,3375.8,1.43781311]
[1642066335450,5.35397897,3375.9,3375.8,1.43781311]
[1642066335653,0.1352202,3375.9,3374.8,3.81991954]
[1642066335852,0.01258202,3375.7,3374.8,3.81991954]
[1642066336053,0.1792,3375.2,3374.9,0.00170527]
[1642066336451,0.1184,3375.1,3374.9,0.00170527]
[1642066336652,0.1184,3375.5,3375.0,1.33444232]
[1642066336857,1.1394,3375.9,3375.0,1.33444232]
[1642066336858,0.1184,3375.6,3375.0,1.33444232]
[1642066337056,0.99982319,3375.2,3375.1,0.00454739]
[1642066338610,0.99982319,3375.2,3375.1,0.50454739]
[1642066341098,0.99982319,3375.2,3375.1,1.9747132]
[1642066341298,0.99982319,3375.2,3375.1,0.50454739]
[1642066342451,0.99982319,3375.2,3375.1,1.96227298]
[1642066343346,3.99982319,3375.2,3375.1,1.96227298]
[1642066343547,3.99982319,3375.2,3375.1,0.50454739]
[1642066350650,4.11822319,3375.2,3375.1,0.50454739]
[1642066351053,3.99982319,3375.2,3375.1,0.50454739]
[1642066351850,3.99982319,3375.2,3375.1,3.0510894]
[1642066356906,3.0,3375.2,3375.1,3.0510894]
[1642066360556,3.0,3375.2,3375.1,3.0619242]
[1642066364202,3.0,3375.2,3375.1,2.5619242]
[1642066367062,3.0,3375.2,3375.1,2.55737681]
[1642066369102,3.0,3375.2,3375.1,2.55916601]
[1642066373252,3.0,3375.2,3375.1,2.67756601]
[1642066376906,3.0,3375.2,3375.1,2.55916601]
[1642066379407,3.1273253,3375.2,3375.1,2.55916601]
[1642066381655,3.1273253,3375.2,3375.1,2.00031731]
[1642066382255,4.0210253,3375.2,3375.1,2.00031731]
[1642066383256,5.02084849,3375.2,3375.1,2.00031731]
[1642066383924,4.1394253,3375.2,3375.1,2.00031731]
[1642066384323,5.13924849,3375.2,3375.1,2.00031731]
[1642066385526,4.1394253,3375.2,3375.1,2.00031731]
[1642066385725,5.13924849,3375.2,3375.1,2.00031731]
[1642066386726,5.00512586,3375.2,3375.1,2.00031731]
[1642066386945,10.00512586,3375.2,3375.1,2.00031731]
[1642066387351,9.88672586,3375.2,3375.1,2.00031731]
[1642066388553,8.88690267,3375.2,3375.1,2.00031731]
[1642066391305,8.88690267,3375.2,3375.1,1.00049412]
[1642066398365,8.88690267,3375.2,3375.1,2.00049412]
[1642066398825,8.88690267,3375.2,3375.1,3.00049412]
[1642066399228,8.88690267,3375.2,3375.1,4.00049412]
[1642066399631,8.88690267,3375.2,3375.1,5.00049412]
[1642066400929,9.00530267,3375.2,3375.1,5.00049412]
[1642066404156,8.88690267,3375.2,3375.1,5.00049412]
[1642066404357,9.00530267,3375.2,3375.1,5.00049412]
[1642066404555,9.00530267,3375.2,3375.1,4.00071636]
[1642066405355,9.00530267,3375.2,3375.1,3.01291203]
[1642066405356,26.44530267,3375.2,3375.1,3.01291203]
[1642066405655,26.32690267,3375.2,3375.1,3.01291203]
[1642066405855,8.88690267,3375.2,3375.1,3.01291203]
[1642066406308,8.88690267,3375.2,3375.1,3.00076082]
[1642066406809,8.88690267,3375.2,3375.1,2.01295648]
[1642066407013,26.32690267,3375.2,3375.1,2.01295648]
[1642066407211,26.32690267,3375.2,3375.1,2.00080527]
[1642066407413,26.32690267,3375.2,3374.8,0.5]
[1642066407813,0.8937,3375.0,3374.9,0.00568424]
[1642066408414,0.8937,3375.1,3374.9,0.00568424]
[1642066408614,2.16192166,3375.0,3374.9,0.00568424]
[1642066408816,1.8879713,3374.9,3374.8,0.5]
[1642066409215,0.8937,3374.9,3374.8,0.5]
[1642066412555,0.8937,3374.9,3374.8,0.6184]
[1642066414706,0.8937,3374.9,3374.8,2.77834171]
[1642066414904,0.8937,3374.9,3374.8,0.6184]
[1642066416508,0.8937,3374.9,3374.8,2.78370305]
[1642066416707,0.75614094,3374.9,3374.8,2.78370305]
[1642066417110,0.75614094,3374.9,3374.8,2.66530305]
[1642066417355,0.75614094,3374.9,3374.8,0.5]
[1642066418458,0.75614094,3374.9,3374.8,2.63311846]
[1642066418757,0.75614094,3374.9,3374.8,0.5]
[1642066423505,0.75614094,3375.1,3374.8,0.5]
[1642066423906,0.75727779,3375.1,3374.8,0.5]
[1642066424709,0.75727779,3375.1,3375.0,0.5]
[1642066425764,0.87567779,3375.1,3375.0,0.45]
[1642066426764,0.75727779,3375.1,3375.0,0.45]
[1642066427767,0.75727779,3375.1,3375.0,2.6852205]
[1642066427964,0.75727779,3375.1,3375.0,0.45]
[1642066428815,0.75727779,3375.1,3375.0,2.59486404]
[1642066429208,0.75727779,3375.1,3375.0,0.45]
[1642066433367,0.87567779,3375.1,3375.0,0.45]
[1642066434563,0.75727779,3375.1,3375.0,0.45]
[1642066440068,3.04820729,3375.1,3375.0,0.45]
[1642066440265,0.87567779,3375.1,3375.0,0.45]
[1642066440467,0.87567779,3375.1,3375.0,0.46091]
[1642066440666,1.87557947,3375.1,3375.0,0.46091]
[1642066441268,0.87567779,3375.1,3375.0,0.46091]
[1642066442871,0.82567779,3375.1,3375.0,0.46091]
[1642066446811,1.68801322,3375.1,3375.0,0.46091]
[1642066448462,0.68811154,3375.1,3375.0,0.46091]
[1642066449461,1.6662593,3375.1,3375.0,1.93435254]
[1642066450463,1.5478593,3375.1,3375.0,1.93435254]
[1642066453925,1.54672245,3375.1,3375.0,1.93435254]
[1642066455862,1.54672245,3375.1,3375.0,2.4437914]
[1642066458719,1.29672245,3375.1,3375.0,2.4437914]
[1642066460320,1.24672245,3375.1,3375.0,2.4437914]
[1642066461321,1.24672245,3375.1,3375.0,2.44291139]
[1642066462373,1.24672245,3375.1,3375.0,1.44300971]
[1642066462768,1.24672245,3375.1,3375.0,0.93357085]
[1642066463064,1.24672245,3375.1,3375.0,0.48458884]
[1642066463466,0.26857469,3374.9,3374.6,0.5]
[1642066463869,0.26857469,3374.9,3374.7,0.00113684]
[1642066464065,0.26857469,3374.9,3374.7,0.51050533]
[1642066465467,0.26857469,3374.9,3374.8,0.50936849]
[1642066465867,2.58287635,3374.9,3374.8,0.50936849]
[1642066466114,0.26857469,3374.9,3374.8,0.50936849]
[1642066466514,1.26843462,3374.9,3374.8,0.50936849]
[1642066466714,1.38683462,3374.9,3374.8,0.50936849]
[1642066466918,1.38683462,3374.9,3374.7,0.00113684]
[1642066467117,19.2481736,3374.8,3374.7,0.00113684]
[1642066467715,1.8081736,3374.8,3374.7,0.00113684]
[1642066468318,19.2481736,3374.8,3374.7,0.00113684]
[1642066468719,19.6741736,3374.8,3374.7,0.00113684]
[1642066469118,0.99872309,3374.7,3374.6,0.5]
[1642066469319,19.13329778,3374.7,3374.6,0.5]
[1642066469521,19.87433778,3374.7,3374.6,0.5]
[1642066469869,20.0065841,3374.7,3374.6,0.5]
[1642066470364,23.37596069,3374.7,3374.6,0.5]
[1642066470568,23.37596069,3374.7,3374.0,0.0036104]
[1642066470768,0.27664862,3374.3,3374.0,0.0036104]
[1642066470965,4.01857469,3374.1,3374.0,0.0036104]
[1642066471166,0.26857469,3373.9,3373.2,2.00328112]
[1642066471368,0.26857469,3373.5,3373.2,9.986e-05]
[1642066471565,2.02418208,3373.8,3373.0,1.43791151]
[1642066471566,0.26857469,3373.3,3373.0,1.43791151]
[1642066471766,4.26857469,3373.1,3373.0,1.151e-05]
[1642066471965,0.26857469,3372.9,3372.8,2.15567811]
[1642066472171,18.13457469,3372.9,3372.8,2.15567811]
[1642066472365,19.27719811,3372.9,3372.8,2.15567811]
[1642066472565,19.27719811,3372.9,3372.8,7.811e-05]
[1642066472767,0.26857469,3372.7,3372.5,2.87423748]
[1642066472967,0.69457469,3372.6,3372.2,6.1617946]
[1642066473169,0.26857469,3372.6,3372.3,0.1186]
[1642066473619,0.26857469,3372.6,3372.4,0.01307374]
[1642066473824,0.26857469,3372.6,3372.5,0.1186]
[1642066474221,0.26857469,3372.6,3372.5,0.13110532]
[1642066474421,0.26857469,3372.6,3372.5,0.01250532]
[1642066474622,0.26857469,3372.4,3372.3,0.4186]
[1642066474825,0.26857469,3372.4,3372.3,0.3]
[1642066475022,0.26857469,3372.4,3372.3,0.30113685]
[1642066475224,0.26857469,3372.4,3372.3,0.00113685]
[1642066476425,0.9987636,3372.3,3372.2,6.16]
[1642066476624,1.12967284,3372.3,3372.2,6.16]
[1642066477468,0.26857469,3372.3,3372.2,6.16]
[1642066478266,0.26857469,3372.3,3372.0,0.4641246]
[1642066478667,0.26857469,3372.3,3372.1,0.00113684]
[1642066478866,0.26857469,3371.9,3371.7,0.1186]
[1642066479167,0.26857469,3371.9,3371.8,0.00170527]
[1642066479467,0.26857469,3371.9,3371.8,0.12030527]
[1642066479668,0.26857469,3371.9,3371.8,0.00170527]
[1642066482635,0.26857469,3371.9,3371.6,0.3032166]
[1642066482636,0.26857469,3371.9,3371.7,0.0022737]
[1642066484135,0.26857469,3371.9,3371.7,0.17509591]
[1642066484332,1.26843241,3371.9,3371.7,0.17509591]
[1642066484969,0.26857469,3371.9,3371.7,0.17509591]
[1642066485568,0.26857469,3371.9,3371.7,0.0022737]
[1642066486866,1.26843241,3371.9,3371.7,0.0022737]
[1642066487367,0.26857469,3371.9,3371.7,0.0022737]
[1642066487772,1.26843241,3371.9,3371.7,0.0022737]
[1642066488165,0.26857469,3371.9,3371.7,0.0022737]
[1642066488617,17.5586,3372.0,3371.7,0.0022737]
[1642066488618,1.26843241,3371.8,3371.7,0.0022737]
[1642066489019,0.26857469,3371.8,3371.7,0.0022737]
[1642066491921,0.11973684,3372.3,3371.7,1.4848637]
[1642066491922,0.00113684,3372.3,3371.7,1.4848637]
[1642066492120,3.0,3372.4,3371.9,0.6671227]
[1642066492377,3.0,3372.4,3372.0,2.15916318]
[1642066492571,0.0001,3372.4,3372.2,0.01249812]
[1642066492771,1.23485601,3373.3,3372.2,0.01249812]
[1642066492974,1.23485601,3373.3,3372.6,0.74116]
[1642066493172,0.118619,3373.7,3372.8,0.00951796]
[1642066493373,0.118619,3373.7,3373.1,0.01225063]
[1642066493573,0.00568424,3373.3,3373.2,1.48183]
[1642066495577,0.00568424,3373.3,3373.2,1.78183]
[1642066495775,0.01152059,3373.7,3373.2,3.73951382]
[1642066495977,0.01152059,3373.7,3373.4,1.48203]
[1642066496219,0.00170527,3373.6,3373.4,1.48203]
[1642066496622,0.00113684,3373.5,3373.4,1.48203]
[1642066497824,0.00113684,3373.5,3373.4,0.85942]
[1642066498023,3.00113684,3373.5,3373.4,0.85942]
[1642066499124,3.00113684,3373.5,3373.4,0.74102]
[1642066500572,3.00113684,3373.5,3373.2,1.48183]
[1642066501973,0.1184,3373.4,3373.2,1.48183]
[1642066503176,0.1184,3373.4,3373.1,0.44060234]
[1642066503378,0.1184,3373.4,3372.6,3.84820252]
[1642066503618,0.1184,3373.4,3372.6,1.48233]
[1642066503821,0.1184,3373.4,3372.7,0.00341054]
[1642066504421,0.1184,3373.4,3372.3,6.16]
[1642066504422,0.1184,3373.4,3372.4,0.00511581]
[1642066504620,17.5584,3373.4,3372.4,0.00511581]
[1642066504820,1.54539182,3372.5,3372.4,0.00511581]
[1642066505020,2.73469269,3372.5,3372.4,0.00511581]
[1642066505222,1.18930087,3372.5,3372.4,0.00511581]
[1642066507568,1.18930087,3372.5,3372.4,0.13249769]
[1642066507768,1.18190568,3372.5,3372.4,0.13249769]
[1642066510080,1.30050568,3372.5,3372.4,0.13249769]
[1642066511719,1.30050568,3372.5,3372.4,0.00511581]
[1642066512121,1.30050568,3372.5,3372.2,0.00625266]
[1642066512320,0.1186,3372.4,3372.2,0.00625266]
[1642066514120,2.5844224,3372.4,3372.2,0.00625266]
[1642066514322,17.44,3372.3,3372.2,0.00625266]
[1642066514623,17.44,3372.3,3372.1,0.07485266]
[1642066514876,19.90945399,3372.2,3372.1,0.07485266]
[1642066515071,20.02805399,3372.2,3372.1,0.07485266]
[1642066517470,22.43084059,3372.2,3372.1,0.07485266]
[1642066517672,22.43084059,3372.2,3371.6,0.0032166]
[1642066517871,0.96333,3372.0,3371.6,0.0032166]
[1642066518072,3.8494681,3371.9,3371.7,0.00284212]
[1642066518272,1.47029292,3371.9,3371.7,0.00284212]
[1642066518718,1.35169292,3371.9,3371.7,0.00284212]
[1642066519023,3.0,3372.2,3371.8,0.1186]
[1642066519417,3.0,3372.2,3371.9,0.00170527]
[1642066519917,1.33059131,3372.1,3371.9,0.00170527]
[1642066520317,1.33059131,3372.1,3371.8,0.00227369]
[1642066521019,1.28059131,3372.1,3371.8,0.00227369]
[1642066521416,1.2551063,3372.1,3371.8,0.00227369]
[1642066523070,1.2551063,3372.1,3371.8,0.12971542]
[1642066523471,1.2551063,3372.1,3371.9,0.00170527]
[1642066524369,1.2551063,3372.1,3371.8,0.00227369]
[1642066524869,1.2551063,3372.1,3371.9,0.12744173]
[1642066525270,1.2551063,3372.1,3372.0,0.00113685]
[1642066526518,1.2551063,3372.1,3371.8,0.00227369]
[1642066526720,1.3737063,3372.1,3371.8,0.00227369]
[1642066527217,0.01146162,3372.0,3371.8,0.00227369]
[1642066527722,1.3737063,3372.1,3371.8,0.00227369]
[1642066530073,2.1152563,3372.1,3371.8,0.00227369]
[1642066530275,1.3737063,3372.1,3371.8,0.00227369]
[1642066530878,1.2551063,3372.1,3371.8,0.00227369]
[1642066534128,1.2551063,3372.1,3371.9,0.0025634]
[1642066534526,1.2551063,3372.1,3372.0,0.00113685]
[1642066535525,3.56839971,3372.1,3372.0,0.00113685]
[1642066535725,21.00839971,3372.1,3372.0,0.00113685]
[1642066536126,22.00825743,3372.1,3372.0,0.00113685]
[1642066536324,19.69496402,3372.1,3372.0,0.00113685]
[1642066536526,2.25496402,3372.1,3372.0,0.00113685]
[1642066536729,19.69496402,3372.1,3372.0,0.00113685]
[1642066536926,2.25496402,3372.1,3372.0,0.00113685]
[1642066537229,4.59762703,3372.1,3372.0,0.00113685]
[1642066537480,4.63177188,3372.1,3372.0,0.00113685]
[1642066537684,22.07177188,3372.1,3372.0,0.00113685]
[1642066537882,4.63177188,3372.1,3372.0,0.00113685]
[1642066538685,5.23177188,3372.1,3372.0,0.00113685]
[1642066538887,20.29496402,3372.1,3372.0,0.00113685]
[1642066539085,21.74296402,3372.1,3372.0,0.00113685]
[1642066539287,22.90656402,3372.1,3372.0,0.00113685]
[1642066539585,21.9067063,3372.1,3372.0,0.00113685]
[1642066539986,22.90656402,3372.1,3372.0,0.00113685]
[1642066540187,21.90656402,3372.1,3372.0,0.00113685]
[1642066540385,4.46656402,3372.1,3372.0,0.00113685]
[1642066540585,21.90656402,3372.1,3372.0,0.00113685]
[1642066540985,20.9067063,3372.1,3372.0,0.00113685]
[1642066541419,21.90656402,3372.1,3372.0,0.00113685]
[1642066541817,21.9067063,3372.1,3372.0,0.00113685]
[1642066542618,21.9067063,3372.1,3371.9,0.0025634]
[1642066542619,22.3327063,3372.1,3371.9,0.0025634]
[1642066542818,1.1186,3372.0,3371.1,0.1186]
[1642066543018,0.7418,3371.6,3371.1,0.1186]
[1642066543219,0.7418,3371.6,3371.2,0.00454739]
[1642066543220,17.5586,3371.5,3371.2,0.00454739]
[1642066543418,2.56699324,3371.4,3371.2,0.00454739]
[1642066543619,0.99531033,3371.1,3370.3,0.1186]
[1642066544020,17.7419,3371.2,3371.0,0.00295374]
[1642066544319,18.0419,3371.2,3371.0,0.00295374]
[1642066544520,19.0836772,3371.2,3371.0,0.00295374]
[1642066545080,20.9703472,3371.2,3371.0,0.00295374]
[1642066545272,0.1186,3371.1,3371.0,0.00295374]
[1642066545473,0.99680743,3371.0,3370.2,0.0018169]
[1642066545673,0.74182,3370.7,3370.2,0.0018169]
[1642066545874,0.1186,3371.1,3370.2,0.0018169]
[1642066545875,0.1186,3371.1,3370.3,0.00397897]
[1642066546075,1.1449,3371.2,3370.4,0.1186]
[1642066546473,2.56699324,3371.4,3370.5,0.00284212]
[1642066546677,0.74173,3371.1,3370.5,0.00284212]
[1642066546876,1.21376952,3370.7,3370.5,0.74449212]
[1642066547077,1.21376952,3370.7,3370.5,0.74165]
[1642066547275,1.21376952,3370.7,3370.6,0.0022737]
[1642066548077,1.21376952,3370.7,3370.4,0.13088856]
[1642066548277,1.21376952,3370.7,3370.5,0.00284212]
[1642066548938,4.21376952,3370.7,3370.5,0.00284212]
[1642066549541,4.21376952,3370.7,3370.6,0.1186]
[1642066549739,4.21376952,3370.7,3370.5,0.12144212]
[1642066549938,4.21376952,3370.7,3370.6,0.0022737]
[1642066550141,4.21376952,3370.7,3370.6,0.1208737]
[1642066550837,4.21376952,3370.7,3370.6,0.24835172]
[1642066555281,4.21376952,3370.7,3370.6,0.12975172]
[1642066558241,4.21376952,3370.7,3370.6,2.396893]
[1642066558242,3.0,3370.7,3370.6,2.396893]
[1642066558442,3.0,3370.7,3370.6,3.257043]
[1642066558941,3.0,3370.7,3370.6,4.257043]
[1642066559240,4.3038157,3370.7,3370.6,4.257043]
[1642066559440,4.3038157,3370.7,3370.6,1.98990172]
[1642066559641,4.3038157,3370.7,3370.6,0.98990172]
[1642066561073,3.0,3370.7,3370.6,0.98990172]
[1642066561671,3.0,3370.7,3370.6,4.15388968]
[1642066561970,3.0,3370.7,3370.6,1.98990172]
[1642066562176,4.40529501,3370.7,3370.6,0.24835172]
[1642066564125,3.0,3370.7,3370.6,0.24835172]
[1642066564426,1.1755,3371.6,3370.6,0.24835172]
[1642066564427,1.51378004,3372.4,3370.9,0.05200186]
[1642066564626,2.3453069,3373.1,3370.9,0.05200186]
[1642066564627,5.085286,3373.9,3372.5,0.61956705]
[1642066564832,5.085286,3373.9,3373.1,0.01201648]
[1642066565027,5.085286,3373.9,3372.6,0.56263424]
[1642066565028,0.06027,3373.8,3373.2,0.017768]
[1642066565227,5.1856301,3373.3,3372.6,0.84393293]
[1642066565526,0.01080004,3373.2,3372.6,2.32614293]
[1642066565725,0.06026,3373.1,3372.7,0.426]
[1642066565930,0.07049162,3373.1,3372.7,0.426]
[1642066566126,0.0096632,3373.0,3372.9,0.74122]
[1642066566326,0.0699232,3373.0,3372.9,1.16722]
[1642066566528,0.0096632,3373.0,3372.9,0.426]
[1642066566727,0.0096632,3373.0,3372.7,0.12747802]
[1642066566728,0.0699232,3373.0,3372.7,0.12747802]
[1642066566928,0.0096632,3373.0,3372.7,0.12747802]
[1642066567132,0.00909477,3372.9,3372.7,0.12747802]
[1642066567572,2.52112289,3373.2,3372.7,0.12747802]
[1642066567573,0.00852635,3372.8,3372.7,0.12747802]
[1642066567772,0.00852635,3372.8,3372.6,2.32614293]
[1642066567973,1.4977227,3372.7,3372.6,2.32614293]